bitfinex/quotes_ETHUSD_20220310
["timestamp","ask_amount","ask_price","bid_price","bid_amount"]
[1646886946802,0.35269588,2619.2,2618.7,0.51270296]
[1646886947001,1.2555,2619.2,2618.7,0.51270296]
[1646886947199,0.18194379,2619.1,2618.8,0.0789534]
[1646886947600,0.9555,2619.2,2618.8,0.0789534]
[1646886948202,0.9555,2619.2,2618.8,3.5789534]
[1646886948443,2.86652,2619.3,2618.9,0.08696022]
[1646886948444,1.124,2619.3,2618.9,0.08696022]
[1646886949044,2.02663031,2619.3,2618.9,0.08696022]
[1646886949246,2.02663031,2619.3,2618.9,0.27154414]
[1646886949445,1.124,2619.2,2618.9,0.27154414]
[1646886949843,1.124,2619.1,2618.9,0.27154414]
[1646886950449,0.95534,2620.1,2618.9,1.99744912]
[1646886950646,3.5,2620.3,2619.1,0.07645719]
[1646886950845,3.68194379,2620.3,2618.9,0.08873066]
[1646886951049,0.18194379,2620.0,2618.9,0.08873066]
[1646886951256,0.18194379,2620.0,2618.0,0.13819997]
[1646886951257,0.56367779,2620.0,2618.0,0.13819997]
[1646886951451,0.9556,2619.7,2618.1,0.08149455]
[1646886951652,3.07995424,2619.3,2618.4,1.09291114]
[1646886951854,3.07995424,2619.3,2618.5,0.08490585]
[1646886952057,1.91088,2619.3,2618.5,0.08490585]
[1646886952288,1.91088,2619.3,2618.6,0.9554916]
[1646886952489,4.761214,2620.0,2618.7,0.08043]
[1646886952690,4.761214,2620.0,2618.9,1.9105973]
[1646886952891,1.91064,2619.7,2618.9,1.9105973]
[1646886953089,0.9193374,2619.6,2619.0,0.07047454]
[1646886953293,0.9193374,2619.6,2619.1,0.9552942]
[1646886953494,1.91064,2619.7,2619.3,0.08243215]
[1646886953694,0.95529,2619.5,2619.3,0.08243215]
[1646886953892,3.8,2620.0,2619.3,0.08243215]
[1646886954304,0.40796785,2619.3,2619.2,13.7562168]
[1646886954697,0.40796785,2619.3,2619.2,1.9103168]
[1646886955498,0.40796785,2619.3,2619.2,1.9220028]
[1646886955701,0.40796785,2619.3,2619.2,2.85259511]
[1646886956145,0.40796785,2619.3,2619.2,3.22849511]
[1646886956352,0.40796785,2619.3,2619.2,2.75259511]
[1646886956947,0.40796785,2619.3,2619.2,2.74090911]
[1646886957149,0.40796785,2619.3,2619.2,1.8103168]
[1646886959148,0.40796785,2619.3,2619.1,0.9551416]
[1646886960191,0.40796785,2619.3,2619.1,12.4251416]
[1646886961095,0.40796785,2619.3,2619.2,12.50222158]
[1646886961294,0.40796785,2619.3,2619.2,12.87812158]
[1646886961895,0.40796785,2619.3,2619.1,1.4001416]
[1646886962098,0.40796785,2619.3,2619.1,0.9551416]
[1646886964242,0.40796785,2619.3,2619.1,4.8310416]
[1646886964441,0.40796785,2619.3,2619.2,0.08702683]
[1646886964842,0.40796785,2619.3,2619.1,0.9551416]
[1646886965243,3.9,2619.2,2617.0,0.3]
[1646886965451,0.01278506,2618.3,2617.2,1.58496325]
[1646886965643,0.01278506,2618.3,2616.2,4.10287175]
[1646886965644,1.05463784,2617.1,2616.2,0.89299275]
[1646886965846,0.01257774,2617.7,2616.2,0.89299275]
[1646886965847,1.91231,2617.3,2616.2,0.89299275]
[1646886966054,1.91231,2617.3,2616.3,11.47]
[1646886966055,1.874,2617.2,2616.3,11.47]
[1646886966247,0.05489452,2617.2,2616.2,0.89299275]
[1646886966547,1.33209,2617.1,2616.2,0.89299275]
[1646886966748,0.06304191,2617.0,2615.8,0.152913]
[1646886967050,2.883778,2617.5,2616.0,14.5427226]
[1646886967051,2.86847,2617.5,2616.0,14.5427226]
[1646886967290,2.86847,2617.5,2616.6,11.47]
[1646886967291,0.05826963,2617.4,2616.6,11.47]
[1646886967488,0.05826963,2617.4,2616.0,0.00096]
[1646886967699,1.00203612,2616.7,2616.0,0.00096]
[1646886967894,1.00203612,2616.7,2615.7,0.06101094]
[1646886967895,2.86887,2616.6,2615.7,0.06101094]
[1646886968095,0.06554974,2616.5,2615.4,0.00096]
[1646886968290,0.06554974,2616.5,2615.2,0.00096]
[1646886968490,0.3759,2616.4,2615.2,0.00096]
[1646886968691,0.3759,2616.3,2615.1,0.07142]
[1646886968892,0.3759,2616.0,2615.1,0.07142]
[1646886969093,1.00473859,2615.7,2615.1,0.07142]
[1646886969291,0.06511499,2615.6,2615.1,0.07142]
[1646886969693,0.05305378,2615.9,2615.1,0.07142]
[1646886970198,0.05560317,2615.5,2615.1,0.07142]
[1646886970398,4.20393,2615.4,2615.1,0.07142]
[1646886970596,4.20393,2615.4,2614.4,0.00096]
[1646886970597,0.06337324,2615.3,2614.4,0.00096]
[1646886970792,0.05626167,2615.1,2614.2,0.00096]
[1646886971047,1.03011264,2614.8,2614.0,0.99730659]
[1646886971245,0.95707,2614.7,2614.0,0.99634659]
[1646886971442,0.05261076,2614.5,2614.0,0.99634659]
[1646886972346,1.00957076,2614.5,2614.0,0.99634659]
[1646886972749,0.95696,2614.5,2614.1,11.47]
[1646886973145,3.9,2614.4,2612.9,1.4121946]
[1646886973351,3.9,2614.4,2612.4,3.82776]
[1646886973352,0.01211929,2613.2,2612.0,0.70450812]
[1646886973548,0.01211929,2613.2,2611.7,0.07984288]
[1646886973549,2.84281294,2611.9,2611.7,0.07984288]
[1646886973750,0.06385132,2611.8,2611.7,0.07984288]
[1646886973950,0.445,2612.5,2611.3,0.036001]
[1646886973951,0.0084472,2611.4,2611.3,0.036001]
[1646886974148,0.0084472,2611.4,2611.3,0.26263292]
[1646886974349,0.05943986,2612.4,2611.4,2.11545965]
[1646886974547,1.01545441,2612.6,2611.4,2.11545965]
[1646886974793,0.06382108,2612.5,2611.4,2.17922051]
[1646886974994,0.06382108,2612.5,2611.5,0.07186584]
[1646886975195,0.05980956,2612.7,2611.6,1.200013]
[1646886975404,0.57810634,2612.8,2612.1,3.0]
[1646886975595,0.57810634,2612.8,2611.9,0.08316978]
[1646886975894,0.57810634,2612.8,2612.2,0.06585802]
[1646886976099,0.05230585,2613.9,2612.7,3.0]
[1646886976400,3.5,2614.8,2613.8,1.15456532]
[1646886976597,0.06408189,2615.1,2613.8,1.15456532]
[1646886976598,0.05190787,2614.7,2614.0,0.012052]
[1646886976796,3.56146119,2614.9,2613.9,0.00096]
[1646886976999,0.95711,2614.4,2613.0,0.07394442]
[1646886977197,3.56090117,2614.3,2613.0,0.04578192]
[1646886977401,0.05513248,2614.2,2613.0,0.04578192]
[1646886978005,0.95734,2614.0,2613.5,0.88457515]
[1646886978201,0.05919299,2614.5,2613.5,0.93035707]
[1646886978466,0.63912107,2615.1,2613.5,0.04578192]
[1646886978467,3.5,2615.1,2613.5,0.04578192]
[1646886978651,3.445,2615.0,2613.6,0.00096]
[1646886978850,3.445,2615.0,2613.5,0.04578192]
[1646886978851,0.18194379,2614.4,2613.5,0.04578192]
[1646886979049,0.18194379,2614.4,2613.5,0.09156384]
[1646886979050,3.96075722,2614.2,2613.5,0.09156384]
[1646886979249,0.0579145,2614.0,2613.5,0.09156384]
[1646886979450,0.445,2613.9,2613.5,0.09156384]
[1646886979650,1.01742658,2613.7,2613.5,0.09156384]
[1646886979852,0.06707832,2613.6,2613.5,0.09156384]
[1646886980461,0.05631058,2613.4,2612.1,0.011667]
[1646886980663,3.55631058,2613.4,2612.1,0.0640912]
[1646886980865,0.93605509,2613.0,2612.1,0.0640912]
[1646886981063,0.05706095,2612.9,2612.1,0.0640912]
[1646886982062,0.95778,2612.8,2612.4,0.98870655]
[1646886982303,0.95778,2612.8,2612.0,0.02019964]
[1646886982304,3.9,2612.6,2612.0,0.00949264]
[1646886982499,0.06725892,2612.7,2612.0,0.01706528]
[1646886982500,3.95953966,2612.4,2612.0,0.01706528]
[1646886982700,0.445,2612.3,2612.0,0.01706528]
[1646886982999,3.9,2612.2,2611.8,0.03413056]
[1646886983201,0.97232829,2612.1,2611.8,0.03413056]
[1646886983400,0.05985143,2612.1,2611.8,0.03413056]
[1646886983600,0.95813,2611.9,2611.6,0.01159496]
[1646886983801,1.0224885,2611.9,2611.6,0.01159496]
[1646886983999,0.06027829,2611.8,2611.6,0.01159496]
[1646886984200,1.8,2611.7,2611.5,0.03256872]
[1646886984401,1.8,2611.7,2611.6,0.02318992]
[1646886984604,2.81218403,2611.7,2611.6,0.02696976]
[1646886984803,2.81218403,2611.7,2611.3,0.0457934]
[1646886984804,3.9,2611.6,2611.3,0.0457934]
[1646886985004,1.13214458,2611.4,2611.3,0.0457934]
[1646886985304,1.13214458,2611.4,2611.1,0.01370424]
[1646886985305,2.6,2611.2,2611.1,0.01370424]
[1646886985502,0.05953243,2611.2,2611.1,0.01370424]
[1646886985952,0.13819997,2611.9,2611.1,0.01370424]
[1646886986148,0.19961931,2611.9,2611.1,0.01370424]
[1646886986546,1.21488981,2611.9,2611.1,1.13630046]
[1646886986747,0.06200129,2611.8,2611.1,1.13630046]
[1646886987146,0.13819997,2611.9,2611.1,1.13630046]
[1646886987348,0.06307396,2611.6,2611.1,1.13630046]
[1646886987646,0.06307396,2611.6,2611.2,0.011728]
[1646886987848,0.06307396,2611.6,2611.1,0.01370424]
[1646886988847,1.00467543,2611.7,2611.1,0.96034475]
[1646886989052,0.04711853,2611.6,2611.1,0.01370424]
[1646886989254,1.91634,2611.5,2611.1,0.01370424]
[1646886989449,0.05245356,2611.4,2611.1,0.01370424]
[1646886989889,0.95815,2611.3,2611.2,0.00111747]
[1646886990392,0.05455243,2611.6,2611.2,0.01482171]
[1646886990589,1.91622,2611.5,2611.2,0.01482171]
[1646886990793,0.05509275,2611.4,2611.2,0.01482171]
[1646886991193,0.27673691,2611.5,2611.2,0.01482171]
[1646886992095,0.9581,2611.6,2611.4,0.015386]
[1646886992393,0.9581,2611.6,2611.4,0.01370424]
[1646886992994,1.334,2611.6,2611.4,0.01370424]
[1646886993298,5.134,2611.6,2611.4,0.01370424]
[1646886993748,3.55116193,2611.5,2611.4,0.02740848]
[1646886994148,2.2,2611.4,2611.2,0.00111747]
[1646886994548,6.77144353,2611.4,2611.0,1.0]
[1646886994753,6.77144353,2611.4,2610.7,0.13407488]
[1646886994754,1.9173899,2611.0,2610.7,0.13407488]
[1646886994950,1.9173899,2611.0,2610.1,0.08401486]
[1646886994951,0.3759,2610.8,2610.6,0.1093052]
[1646886995149,3.96300638,2610.9,2609.8,0.0294402]
[1646886995150,0.3759,2610.6,2609.8,0.0294402]
[1646886995354,0.04283952,2610.6,2610.2,0.02917696]
[1646886995755,3.83524,2610.5,2610.1,0.02894262]
[1646886995961,3.83524,2610.5,2610.1,3.52894262]
[1646886995962,2.87645,2610.5,2610.1,3.52894262]
[1646886996153,0.95878,2610.7,2610.1,3.54065662]
[1646886996376,0.05124037,2611.5,2610.5,0.01189]
[1646886996553,1.9163,2611.4,2611.1,0.012005]
[1646886996754,1.9163,2611.4,2611.1,0.011676]
[1646886997202,1.9163,2611.4,2610.9,0.011667]
[1646886997400,1.9163,2611.4,2610.2,0.02894262]
[1646886997599,1.9163,2611.4,2610.8,0.011667]
[1646886997798,1.9163,2611.4,2611.0,1.09867702]
[1646886998001,1.9163,2611.4,2610.2,0.02894262]
[1646886998002,3.94294118,2611.3,2610.2,0.02894262]
[1646886998204,3.94294118,2611.3,2609.2,12.44604308]
[1646886998205,3.95236622,2611.1,2609.2,12.44604308]
[1646886998404,3.95236622,2611.1,2609.6,0.03093356]
[1646886998405,3.5,2611.1,2609.6,0.03093356]
[1646886998608,0.01251604,2610.5,2609.6,0.03093356]
[1646886998802,0.01251604,2610.5,2609.3,0.08001644]
[1646886998803,0.04691296,2610.3,2609.3,0.08001644]
[1646886999003,0.9589,2610.0,2609.3,0.07905644]
[1646886999202,1.00183527,2610.0,2609.3,0.07905644]
[1646886999507,1.00183527,2610.0,2609.3,0.11612458]
[1646886999508,0.04590962,2609.8,2609.3,0.11612458]
[1646887000304,1.26517849,2609.8,2609.3,0.11612458]
[1646887000503,0.95891,2609.7,2609.3,0.11612458]
[1646887000703,0.04590962,2609.8,2609.3,0.11612458]
[1646887000704,2.8774,2609.8,2609.3,0.11612458]
[1646887001155,1.9331,2610.0,2609.3,0.11612458]
[1646887001347,0.9742,2610.0,2609.3,0.11612458]
[1646887001745,0.9742,2610.0,2609.9,1.17492963]
[1646887002648,0.9742,2610.0,2609.9,1.19691127]
[1646887003049,1.91687,2610.7,2609.9,1.19691127]
[1646887003646,0.9584,2610.6,2609.9,1.19691127]
[1646887003850,0.9584,2610.6,2610.0,0.08874476]
[1646887004048,0.9584,2610.6,2610.1,0.01181]
[1646887004347,0.9584,2610.6,2610.3,0.011857]
[1646887004546,0.9584,2610.6,2610.5,0.011862]
[1646887004796,0.9584,2610.6,2610.5,0.011732]
[1646887004996,0.95831,2610.9,2610.5,0.011732]
[1646887005395,0.95831,2610.9,2610.3,0.02198164]
[1646887005594,0.95831,2610.9,2610.5,0.02198164]
[1646887006595,0.95831,2610.9,2610.8,0.011919]
[1646887006795,0.95831,2610.9,2610.6,0.011785]
[1646887006994,0.95831,2610.9,2610.5,0.02198164]
[1646887007195,0.95831,2610.9,2610.6,0.011708]
[1646887007397,0.95831,2610.9,2610.7,0.011756]
[1646887007597,0.95831,2610.9,2610.7,0.011671]
[1646887008457,0.95831,2610.9,2610.7,0.03370464]
[1646887008650,0.95831,2610.9,2610.7,0.03366464]
[1646887009054,0.95831,2610.9,2610.7,0.02198164]
[1646887010050,0.95831,2610.9,2610.7,0.02363453]
[1646887011259,0.01943147,2610.0,2609.6,0.08458052]
[1646887011456,5.77916722,2612.4,2610.4,3.8]
[1646887011663,1.00074517,2612.9,2611.4,0.01204851]
[1646887011859,0.005834,2613.1,2612.3,0.01223447]
[1646887012057,0.005834,2613.1,2612.3,0.45723447]
[1646887012058,0.95773,2613.1,2612.3,0.45723447]
[1646887012299,2.4014,2614.2,2612.5,0.06974345]
[1646887012494,9.5198,2614.5,2612.6,0.06258625]
[1646887012696,6.028534,2614.6,2612.6,0.445]
[1646887012899,3.9,2614.2,2612.8,0.07972799]
[1646887013101,3.9,2614.2,2612.8,0.52472799]
[1646887013302,0.005834,2614.6,2612.8,0.445]
[1646887013303,0.95736,2614.1,2612.8,0.445]
[1646887013502,27.7076545,2614.3,2613.0,0.07308632]
[1646887013503,25.7928745,2614.3,2613.0,0.07308632]
[1646887013703,25.7928745,2614.3,2613.2,0.86867155]
[1646887013903,2.59857124,2615.1,2613.3,15.49096041]
[1646887014102,0.01201063,2615.6,2613.5,12.42694]
[1646887014408,0.01201063,2615.6,2613.3,3.945]
[1646887014409,0.95703,2615.0,2613.7,0.08715335]
[1646887014602,0.95703,2615.0,2613.7,0.13111663]
[1646887014800,1.90651129,2615.0,2613.8,0.14784154]
[1646887015000,0.01201063,2615.6,2613.8,12.06284154]
[1646887015202,0.005834,2616.3,2614.0,0.9568]
[1646887015203,6.2049,2616.1,2614.0,0.9568]
[1646887015401,0.005834,2616.3,2614.0,0.9568]
[1646887015402,5.11094,2616.2,2614.1,4.01598568]
[1646887015602,0.95684,2615.6,2614.2,0.08256428]
[1646887015800,0.95684,2615.6,2614.3,0.445]
[1646887016050,1.09015188,2615.0,2614.2,0.08256428]
[1646887016251,1.09015188,2615.0,2614.1,0.04396328]
[1646887016649,0.95705,2614.9,2614.1,0.04396328]
[1646887016851,1.09015188,2615.0,2614.1,0.04396328]
[1646887017248,1.09015188,2615.0,2614.1,0.12295179]
[1646887017450,0.04889959,2615.8,2614.1,0.12295179]
[1646887017649,0.04889959,2615.8,2614.4,0.011882]
[1646887017953,1.91405,2615.4,2614.4,0.011882]
[1646887018148,3.9,2615.3,2613.2,1.3267143]
[1646887018353,3.9,2615.3,2612.3,0.93649994]
[1646887018354,3.0,2613.7,2612.3,0.93649994]
[1646887018553,0.01265628,2614.0,2611.8,1.85532034]
[1646887018554,0.01213985,2612.9,2611.8,1.85532034]
[1646887018752,3.49799599,2613.6,2611.8,1.85532034]
[1646887018753,0.018798,2611.9,2611.8,1.85532034]
[1646887018953,0.018798,2611.9,2610.7,1.58883602]
[1646887019152,0.91646126,2611.9,2610.7,1.58883602]
[1646887019353,0.0503118,2611.9,2610.9,0.08180055]
[1646887019556,1.0086618,2611.9,2611.0,1.58883602]
[1646887019800,3.5536691,2611.8,2611.0,1.58883602]
[1646887019999,3.5536691,2611.8,2610.3,0.13819997]
[1646887020000,0.04988826,2611.7,2610.3,0.13819997]
[1646887020203,0.05024065,2611.3,2610.3,0.13819997]
[1646887020404,0.445,2611.2,2610.1,0.05312424]
[1646887020603,1.22709053,2610.9,2610.1,0.05312424]
[1646887020799,0.95864,2610.7,2610.1,0.05312424]
[1646887021003,0.445,2610.6,2610.1,0.05312424]
[1646887021305,3.945,2610.6,2610.1,0.05312424]
[1646887021503,0.04710579,2610.5,2610.1,0.05312424]
[1646887021710,0.445,2610.4,2610.1,0.05312424]
[1646887021903,0.445,2610.3,2610.1,0.05312424]
[1646887022307,1.46960488,2610.3,2610.1,0.05312424]
[1646887022507,4.96960488,2610.3,2610.1,0.05312424]
[1646887022706,1.46960488,2610.3,2610.1,0.05312424]
[1646887022906,0.445,2610.3,2610.1,0.05312424]
[1646887023744,3.945,2610.3,2610.1,0.05312424]
[1646887023946,4.96297205,2610.3,2610.1,0.05312424]
[1646887024143,1.46297205,2610.3,2610.1,0.05312424]
[1646887024443,0.445,2610.3,2610.1,0.05312424]
[1646887024843,0.445,2610.3,2610.2,0.06023223]
[1646887026662,0.95863,2610.4,2610.2,0.06023223]
[1646887027053,1.91735,2610.9,2610.2,0.06023223]
[1646887027054,0.011667,2611.8,2610.2,0.06023223]
[1646887027301,0.445,2611.7,2610.3,1.58948047]
[1646887027494,0.445,2611.7,2610.3,0.9229454]
[1646887027495,1.16998629,2611.5,2610.3,0.9229454]
[1646887027695,0.04612183,2611.8,2610.4,0.07496685]
[1646887027895,1.38025183,2611.8,2610.4,0.07496685]
[1646887028095,0.95825,2611.5,2610.4,0.07496685]
[1646887028493,0.95825,2611.5,2610.3,0.00096]
[1646887028693,0.95825,2611.5,2610.2,0.06023223]
[1646887029293,0.95825,2611.5,2610.3,11.47]
[1646887029294,0.97603098,2611.4,2610.3,11.47]
[1646887029498,0.97603098,2611.4,2610.4,0.08517522]
[1646887029701,0.95825,2611.5,2610.4,0.08517522]
[1646887029903,1.91642,2611.8,2610.4,0.08517522]
[1646887030101,0.49776174,2612.2,2610.4,0.08517522]
[1646887030102,1.96887174,2612.2,2610.5,1.5892538]
[1646887030303,0.04827503,2612.5,2610.8,11.47]
[1646887030504,0.04827503,2612.5,2610.7,3.09053401]
[1646887030505,3.54452488,2613.0,2611.1,11.47]
[1646887030702,3.54452488,2613.0,2611.2,0.07649265]
[1646887030703,1.11270007,2612.6,2611.2,0.07649265]
[1646887030959,0.3759,2612.8,2612.2,0.012063]
[1646887031159,0.04687035,2613.2,2612.5,0.01186]
[1646887031352,0.04687035,2613.2,2612.7,0.011998]
[1646887031852,0.04687035,2613.2,2612.5,0.01186]
[1646887031853,1.06524479,2613.1,2612.5,0.01186]
[1646887032050,0.95765,2613.1,2612.5,0.01186]
[1646887032251,0.95765,2613.1,2612.8,0.011857]
[1646887032456,1.91526,2613.4,2612.8,0.011857]
[1646887032951,1.91526,2613.4,2612.5,0.01186]
[1646887033151,1.15376874,2612.9,2612.5,0.01186]
[1646887033752,0.95766,2613.1,2612.5,0.01186]
[1646887034554,1.874,2613.3,2612.9,0.011946]
[1646887034791,3.8,2613.5,2612.9,0.011946]
[1646887034792,1.01383601,2613.4,2612.9,0.011946]
[1646887034997,3.8,2613.5,2613.3,0.012402]
[1646887035998,1.00414792,2612.8,2612.7,0.00259078]
[1646887036195,0.9576,2613.4,2612.7,0.00259078]
[1646887036396,3.8,2613.5,2613.1,0.011958]
[1646887036996,3.8,2613.5,2613.1,5.8e-05]
[1646887037200,3.8,2613.5,2612.7,0.00259078]
[1646887037201,0.04133306,2613.3,2612.7,0.00259078]
[1646887037397,0.445,2613.2,2612.7,0.00259078]
[1646887037601,2.02806286,2613.0,2612.7,0.00259078]
[1646887037797,0.05308448,2612.8,2612.7,0.00259078]
[1646887038200,1.97698892,2613.0,2612.7,0.00259078]
[1646887038201,0.95787,2612.9,2612.7,0.00259078]
[1646887038497,3.8,2613.5,2612.7,0.00259078]
[1646887038876,3.54799894,2613.4,2612.7,0.00259078]
[1646887039073,0.04799894,2613.4,2612.7,0.00259078]
[1646887039478,3.8,2613.5,2612.7,0.00259078]
[1646887039675,3.8,2613.5,2612.7,11.47259078]
[1646887039875,3.8,2613.5,2612.8,3.580883]
[1646887040073,3.8,2613.5,2612.9,0.07863659]
[1646887040278,3.8,2613.5,2612.6,0.07751195]
[1646887040479,3.8,2613.5,2612.7,11.47]
[1646887040676,3.8,2613.5,2613.0,0.07706336]
[1646887040876,3.8,2613.5,2613.2,0.09061329]
[1646887041382,3.8,2613.5,2613.3,0.07928375]
[1646887041804,3.8,2613.5,2612.9,3.5]
[1646887041979,3.8,2613.5,2613.1,0.07092755]
[1646887042201,3.8,2613.5,2613.2,0.08045772]
[1646887042399,0.04247084,2615.0,2613.3,3.9]
[1646887042600,0.04247084,2615.0,2613.5,0.07625056]
[1646887042805,0.04247084,2615.0,2613.7,11.47]
[1646887043106,0.04247084,2615.0,2614.0,0.07053681]
[1646887043300,1.18795395,2614.7,2613.7,0.00096]
[1646887043500,0.957,2615.1,2613.4,3.5]
[1646887043501,0.957,2615.1,2613.4,0.00096]
[1646887043699,0.05269763,2615.0,2613.1,3.0]
[1646887043900,0.05269763,2615.0,2613.3,11.47]
[1646887044101,0.05269763,2615.0,2613.5,11.47]
[1646887044299,0.01254408,2615.4,2613.7,0.08806982]
[1646887044300,0.95695,2614.9,2613.7,0.08806982]
[1646887044503,1.16589967,2614.7,2613.5,0.08191796]
[1646887044700,1.16589967,2614.7,2613.6,0.00096]
[1646887044901,1.16589967,2614.7,2613.4,0.00096]
[1646887045103,1.16589967,2614.7,2613.4,0.08164211]
[1646887045300,1.54179967,2614.7,2613.4,0.08164211]
[1646887045505,1.0653942,2614.3,2613.4,0.08164211]
[1646887045706,0.3759,2614.5,2613.3,0.00096]
[1646887045707,2.87136,2615.5,2614.1,0.012125]
[1646887045954,2.68996387,2616.0,2614.1,0.012125]
[1646887045955,2.5411226,2615.7,2615.4,0.020057]
[1646887046160,2.5411226,2615.7,2615.5,0.011784]
[1646887046358,2.58726872,2616.8,2615.5,0.011668]
[1646887046657,2.58726872,2616.8,2615.3,0.012125]
[1646887046658,1.03930533,2615.7,2615.3,0.012125]
[1646887046856,1.03930533,2615.7,2614.9,0.06985161]
[1646887047159,1.03930533,2615.7,2614.3,2.2961]
[1646887047160,0.04851437,2615.6,2614.3,2.2961]
[1646887047356,0.04851437,2615.6,2614.2,0.01479272]
[1646887047555,0.95699,2615.4,2614.2,0.01479272]
[1646887047755,1.16119543,2614.7,2614.4,0.011864]
[1646887047959,2.87078,2615.4,2614.2,0.01479272]
[1646887048158,2.87078,2615.4,2614.4,0.011865]
[1646887048357,1.91379,2615.4,2614.4,0.011865]
[1646887048756,0.04851437,2615.6,2614.6,0.011863]
[1646887048956,2.2943,2616.1,2614.9,0.011999]
[1646887048957,1.17068664,2615.7,2614.9,0.011999]
[1646887049158,0.04736788,2616.4,2615.6,0.012387]
[1646887049359,0.0459971,2616.8,2616.1,0.012125]
[1646887049797,0.04747092,2617.1,2616.3,0.011865]
[1646887049997,0.04747092,2617.1,2616.5,0.011834]
[1646887050194,1.15628299,2616.9,2616.5,0.011834]
[1646887050397,1.91241,2617.3,2616.5,0.011834]
[1646887050597,2.86868,2617.3,2616.5,0.011834]
[1646887050800,0.956334,2617.1,2616.5,0.011834]
[1646887051000,1.00918798,2617.1,2616.1,0.012125]
[1646887051202,0.956334,2617.1,2616.1,0.012125]
[1646887051400,0.9562,2617.0,2616.3,0.01188]
[1646887051601,1.2275487,2616.7,2616.3,0.01188]
[1646887052602,1.2275487,2616.7,2616.1,0.012125]
[1646887052802,1.91263,2617.0,2616.3,0.011883]
[1646887053004,0.06592368,2617.8,2616.5,0.012027]
[1646887053204,6.42125776,2617.8,2616.9,0.017033]
[1646887053454,0.05146519,2617.7,2616.9,0.017033]
[1646887053649,0.04637046,2618.1,2617.1,0.011902]
[1646887053849,1.09786952,2617.7,2617.3,0.011886]
[1646887054054,3.8,2617.9,2617.5,0.012046]
[1646887054249,3.8,2617.9,2617.7,0.012048]
[1646887055150,3.8,2617.9,2617.6,0.07610592]
[1646887055353,0.95597,2617.9,2617.0,0.011667]
[1646887055751,1.16542838,2618.2,2617.3,0.011991]
[1646887055955,0.90509474,2617.7,2617.3,0.011991]
[1646887056152,0.90509474,2617.7,2617.1,0.011838]
[1646887056355,0.90509474,2617.7,2617.0,0.011667]
[1646887057056,4.7792991,2618.7,2617.0,0.011667]
[1646887057057,2.16402245,2619.0,2617.6,0.012125]
[1646887057310,2.16402245,2619.0,2618.3,0.012125]
[1646887057510,1.00583688,2618.9,2618.0,0.011667]
[1646887057713,0.04390556,2618.8,2617.8,0.011667]
[1646887057916,1.12131264,2617.9,2617.2,0.04537594]
[1646887058113,1.12131264,2617.9,2617.0,0.0712716]
[1646887058313,1.12131264,2617.9,2616.4,3.5]
[1646887058314,1.12131264,2617.9,2616.5,0.07896161]
[1646887058514,0.95597,2617.8,2616.5,0.07896161]
[1646887058713,1.12131264,2617.9,2616.5,0.52396161]
[1646887058912,1.91188,2618.0,2616.7,0.07278018]
[1646887058913,1.16664407,2617.4,2616.7,0.07278018]
[1646887059112,1.91188,2618.0,2616.7,0.07278018]
[1646887059315,1.9117,2618.4,2616.7,0.07278018]
[1646887059616,0.95588,2618.2,2616.7,0.07278018]
[1646887059814,0.95585,2617.9,2616.7,0.07278018]
[1646887060015,0.95585,2617.9,2617.8,0.00294866]
[1646887061351,0.95585,2617.9,2617.8,4.866e-05]
[1646887061550,0.95585,2617.9,2616.2,0.07080244]
[1646887061551,0.3,2617.9,2616.2,0.07080244]
[1646887061748,1.91243,2617.6,2616.1,0.01678203]
[1646887061949,2.21243,2617.6,2616.1,0.01678203]
[1646887062151,2.21243,2617.6,2615.7,0.07423014]
[1646887062152,3.61363,2617.6,2615.7,0.07423014]
[1646887062351,3.0,2617.2,2614.7,0.01230502]
[1646887062552,1.91307,2617.0,2615.3,0.08307174]
[1646887062752,1.91321,2616.8,2614.8,0.07941796]
[1646887062948,1.91321,2616.8,2614.9,0.08009342]
[1646887063149,3.5,2616.7,2614.9,0.08009342]
[1646887063454,3.68194379,2617.4,2615.1,0.07151076]
[1646887063657,3.5,2617.4,2615.4,0.01239889]
[1646887063852,0.95624,2616.9,2615.5,0.08447398]
[1646887064051,3.2,2616.7,2615.5,0.08447398]
[1646887064255,3.2,2616.7,2615.6,0.445]
[1646887064705,3.2,2616.7,2616.2,0.00271809]
[1646887065107,1.04666577,2616.3,2616.2,0.00271809]
[1646887065304,4.15633,2616.7,2616.2,0.00271809]
[1646887065503,3.2,2616.7,2616.2,0.00271809]
[1646887065707,3.2,2616.7,2615.5,0.08106901]
[1646887065907,3.2,2616.7,2615.6,0.445]
[1646887066112,3.2,2616.7,2615.7,0.06803332]
[1646887066311,0.23096668,2615.5,2615.1,1.92530459]
[1646887066507,3.2,2616.7,2616.0,0.46193336]
[1646887067506,3.2,2616.7,2616.1,11.47]
[1646887067909,3.2,2616.7,2616.2,11.47]
[1646887068112,3.2,2616.7,2616.2,15.415]
[1646887068308,3.2,2616.7,2616.4,11.47]
[1646887068555,3.2,2616.7,2616.4,11.915]
[1646887069356,3.2,2616.7,2616.6,11.47]
[1646887069758,3.2,2616.7,2616.6,11.915]
[1646887070358,3.2,2616.7,2616.6,0.445]
[1646887070557,3.2,2616.7,2616.1,0.00250028]
[1646887070961,1.05868986,2616.4,2616.1,0.00250028]
[1646887071359,3.2,2616.7,2616.1,0.00250028]
[1646887071564,0.06081431,2616.6,2616.1,0.00250028]
[1646887071760,3.2,2616.7,2616.1,0.00250028]
[1646887073295,3.2,2616.7,2616.1,11.84840028]
[1646887073498,3.2,2616.7,2616.1,0.00250028]
[1646887073697,0.05759172,2616.6,2616.1,0.00250028]
[1646887073896,3.2,2616.7,2616.1,0.00250028]
[1646887074308,3.2,2616.7,2615.2,1.6076]
[1646887074309,0.05546041,2616.6,2615.2,1.6076]
[1646887074498,0.99590443,2616.0,2615.2,1.1626]
[1646887074698,0.06209949,2615.9,2614.9,0.08009342]
[1646887075301,0.3759,2615.8,2614.3,1.2484]
[1646887075502,0.3759,2615.8,2614.1,1.236]
[1646887075503,1.04458508,2614.9,2613.9,3.50096]
[1646887075707,1.04458508,2614.9,2613.7,0.00096]
[1646887075708,0.05718853,2614.8,2613.7,0.00096]
[1646887075966,0.05718853,2614.8,2613.4,1.58737907]
[1646887076155,0.011667,2615.5,2613.5,3.5]